bitfinex/quotes_ETHUSD_20241124
["timestamp","ask_amount","ask_price","bid_price","bid_amount"]
[1732443719628,0.08940011,3390.9,3390.8,0.55]
[1732443719988,9.06940011,3390.9,3390.8,0.55]
[1732443721656,9.06940011,3390.9,3390.3,0.2935]
[1732443721855,9.85450011,3390.9,3390.3,0.2935]
[1732443722084,9.85450011,3390.9,3390.3,0.32299016]
[1732443722891,10.83995012,3390.9,3389.9,1.0852]
[1732443723079,0.7574,3390.7,3389.9,1.0852]
[1732443723389,0.08933972,3390.6,3389.9,1.0852]
[1732443723597,0.12578778,3390.6,3389.8,0.2935]
[1732443723747,0.7574,3390.5,3389.5,0.80289513]
[1732443723949,0.7574,3390.5,3389.5,1.09639513]
[1732443724145,0.08933184,3390.4,3389.5,1.09639513]
[1732443724370,0.7574,3390.3,3389.5,0.2935]
[1732443724574,0.94042067,3390.3,3389.3,0.2935]
[1732443724771,0.08917165,3390.2,3389.3,0.2935]
[1732443724991,8.98,3390.1,3389.3,0.32299724]
[1732443725350,8.98,3390.1,3389.3,0.2935]
[1732443725549,0.08917165,3390.0,3389.4,0.8435]
[1732443727893,9.7723,3389.9,3389.4,0.2935]
[1732443728200,0.08902717,3389.8,3389.4,0.2935]
[1732443728995,8.98,3389.7,3389.1,0.2935]
[1732443729155,8.98,3389.7,3389.3,0.2935]
[1732443729485,8.98,3389.7,3389.5,0.2935]
[1732443729689,8.98,3389.7,3389.6,0.2935]
[1732443729890,8.98,3389.7,3389.6,1.6141]
[1732443731696,4.34916879,3390.3,3389.6,2.29445049]
[1732443731903,4.34916879,3390.2,3390.1,1.3206]
[1732443732190,4.34916879,3390.7,3390.1,1.6141]
[1732443732387,4.34916879,3390.7,3390.2,0.0294903]
[1732443732697,0.68644806,3391.9,3390.6,0.2935]
[1732443732698,0.7923,3391.4,3390.6,0.2935]
[1732443732886,8.98,3391.3,3391.0,1.0641]
[1732443733069,8.98,3391.3,3391.1,0.8435]
[1732443736934,8.98,3391.6,3391.1,0.8435]
[1732443738894,8.98,3391.6,3391.3,0.55]
[1732443739119,8.98,3392.0,3391.4,0.02948268]
[1732443739815,8.98,3392.0,3391.5,1.3036]
[1732443740014,8.98,3392.0,3391.7,0.55]
[1732443740989,8.98,3392.0,3391.6,0.55]
[1732443741338,8.98,3392.0,3391.3,0.8435]
[1732443741492,8.98,3392.0,3391.2,0.7536]
[1732443741493,0.8172,3391.9,3391.2,0.7536]
[1732443741834,1.27605172,3391.9,3391.2,0.7536]
[1732443742006,1.27605172,3391.9,3390.9,0.7536]
[1732443742208,0.85364806,3391.9,3390.9,1.0471]
[1732443742733,0.8172,3391.9,3391.0,0.57948349]
[1732443743233,9.06684253,3391.8,3391.0,0.57948349]
[1732443745603,0.8223,3391.7,3391.0,0.02948349]
[1732443745806,0.8223,3391.7,3390.9,1.6673]
[1732443745994,9.0667846,3391.6,3391.0,0.0294837]
[1732443746192,9.0667846,3391.6,3390.9,1.69678413]
[1732443747395,9.0667846,3391.6,3390.9,1.6673]
[1732443748939,9.0667846,3391.6,3391.0,0.02948417]
[1732443749227,8.98,3391.5,3390.9,1.6673]
[1732443749624,0.08677933,3391.4,3390.9,1.6673]
[1732443749940,0.08677933,3391.4,3391.0,0.02948256]
[1732443750138,0.08677933,3391.4,3390.9,1.6673]
[1732443752097,8.98,3391.3,3390.9,1.6673]
[1732443752712,0.08677933,3391.2,3390.9,1.6673]
[1732443755144,9.06677933,3391.2,3390.9,1.69678355]
[1732443756740,9.06677933,3391.2,3391.1,0.2935]
[1732443756905,9.06677933,3391.2,3391.1,0.8435]
[1732443757339,9.06677933,3391.2,3391.1,1.6138]
[1732443757752,0.08392091,3391.2,3391.1,1.6138]
[1732443757948,5.08712216,3391.9,3391.1,1.6138]
[1732443758249,0.08392091,3391.8,3391.2,0.02947982]
[1732443759248,0.08392091,3391.8,3391.1,1.64327986]
[1732443759626,5.08712216,3391.9,3391.1,1.64327986]
[1732443761048,5.08712216,3391.8,3391.1,1.64327986]
[1732443761353,0.0839604,3391.7,3391.1,1.64327986]
[1732443762752,0.03644806,3393.4,3391.1,1.64327986]
[1732443762753,0.795,3392.9,3391.8,0.2935]
[1732443762962,4.79362216,3392.8,3392.1,0.2935]
[1732443763111,4.79362216,3392.8,3392.3,0.2935]
[1732443763316,4.79362216,3392.8,3392.5,0.2935]
[1732443763516,4.79362216,3392.7,3392.5,0.803497]
[1732443764040,4.79362216,3392.7,3392.6,0.803497]
[1732443764826,4.79362216,3392.7,3392.6,1.353497]
[1732443767162,4.79362216,3393.1,3393.0,0.2935]
[1732443767324,4.79362216,3393.1,3393.0,0.8435]
[1732443770457,4.87525765,3393.1,3393.0,0.8435]
[1732443774670,4.87525765,3393.1,3393.0,1.353497]
[1732443775067,4.87525765,3393.1,3393.0,2.135397]
[1732443775468,4.87525765,3393.1,3393.0,5.6257519]
[1732443775897,4.79362216,3393.1,3393.0,1.8438519]
[1732443776263,4.87553919,3393.1,3393.0,1.8438519]
[1732443778192,4.87553919,3393.1,3393.0,2.22664714]
[1732443778367,4.87553919,3393.1,3393.0,6.05714714]
[1732443779067,0.08191703,3393.1,3393.0,6.05714714]
[1732443779504,4.79362216,3393.7,3393.2,0.2935]
[1732443779669,4.79362216,3393.6,3393.4,0.2935]
[1732443779868,4.79362216,3393.6,3393.5,0.8435]
[1732443781695,4.50012216,3393.6,3393.5,0.8435]
[1732443782208,5.27132216,3393.6,3393.2,0.2935]
[1732443782374,5.27132216,3393.6,3393.4,0.2935]
[1732443783903,5.27132216,3393.6,3393.5,0.8435]
[1732443786498,5.79845438,3393.6,3393.5,0.8435]
[1732443787184,5.27132216,3393.6,3393.5,0.8435]
[1732443788310,0.8176,3393.3,3393.0,0.2935]
[1732443788470,0.8176,3393.3,3393.0,0.803497]
[1732443788877,0.08223266,3393.2,3393.0,0.803497]
[1732443789205,0.8176,3393.3,3393.0,0.803497]
[1732443790276,0.8176,3393.3,3393.2,0.2935]
[1732443790605,0.89983266,3393.3,3393.2,0.8435]
[1732443791092,4.55645482,3393.3,3393.2,0.8435]
[1732443795306,4.55645482,3393.3,3393.2,1.353497]
[1732443795828,4.47422216,3393.3,3393.2,1.353497]
[1732443796114,4.47422216,3393.3,3393.2,0.8435]
[1732443796303,4.55630492,3393.3,3393.2,0.8435]
[1732443798313,4.55630492,3393.3,3393.2,0.2935]
[1732443799506,4.55630492,3393.3,3392.9,0.2935]
[1732443800092,3.65662216,3393.2,3392.9,0.2935]
[1732443800302,3.36312216,3392.9,3392.8,0.509997]
[1732443800594,3.36312216,3392.9,3392.8,1.353497]
[1732443800790,3.4451076,3392.9,3392.8,1.353497]
[1732443804524,3.4451076,3392.9,3392.8,1.80308159]
[1732443805032,3.4451076,3392.9,3392.8,5.61908159]
[1732443806012,3.4451076,3392.9,3392.8,1.80308159]
[1732443806202,3.4451076,3392.9,3392.8,1.353497]
[1732443808741,3.4451076,3392.9,3392.8,2.169497]
[1732443809031,3.36312216,3392.9,3392.8,5.61908159]
[1732443809538,3.44505499,3392.9,3392.8,5.61908159]
[1732443809719,3.44505499,3392.9,3392.8,2.10908459]
[1732443810031,3.36312216,3392.9,3392.8,2.10908459]
[1732443810242,3.36312216,3392.9,3392.8,5.57883159]
[1732443810421,3.44512338,3392.9,3392.8,5.57883159]
[1732443810617,3.36312216,3392.9,3392.8,2.10908459]
[1732443810951,3.36312216,3392.9,3392.8,1.6595]
[1732443813209,3.36312216,3392.9,3392.8,2.129247]
[1732443813413,3.36312216,3392.9,3392.8,2.57883159]
[1732443813712,3.36312216,3392.9,3392.8,5.57883159]
[1732443815273,0.38744099,3393.6,3393.0,0.8435]
[1732443815415,0.38744099,3393.5,3393.3,0.2935]
[1732443815745,0.38744099,3393.5,3393.4,0.8435]
[1732443816814,0.46953689,3393.5,3393.4,0.8435]
[1732443818923,0.46953689,3393.5,3393.4,2.59089567]
[1732443819114,0.38744099,3393.5,3393.4,5.59089567]
[1732443819652,0.8193,3394.4,3393.6,0.2935]
[1732443819852,0.8193,3394.4,3393.8,0.2935]
[1732443820154,0.8193,3394.4,3394.0,0.2935]
[1732443820363,0.8193,3394.4,3394.3,0.8435]
[1732443820567,9.7993,3394.4,3394.3,0.8435]
[1732443820725,8.98,3394.4,3394.3,0.8435]
[1732443821053,9.06232993,3394.4,3394.3,0.8435]
[1732443826864,10.81579292,3394.4,3394.3,0.8435]
[1732443827069,9.82762993,3394.4,3394.3,0.8435]
[1732443828772,9.06232993,3394.4,3394.3,0.8435]
[1732443828934,9.06232993,3394.4,3394.3,5.53163159]
[1732443830247,0.08232993,3394.4,3394.3,5.53163159]
[1732443830458,8.98,3395.0,3394.9,0.2935]
[1732443830660,8.98,3395.0,3394.9,0.8435]
[1732443833170,8.98,3395.0,3394.9,1.313247]
[1732443834276,8.98,3395.0,3394.9,0.8435]
[1732443836155,8.98,3395.3,3395.1,0.2935]
[1732443836406,0.7653,3395.2,3395.1,0.2935]
[1732443836857,0.7653,3395.2,3395.1,0.8435]
[1732443837944,0.8454928,3395.2,3395.1,0.8435]
[1732443838886,0.0801928,3395.2,3395.1,0.8435]
[1732443839084,8.98,3395.3,3395.2,0.8435]
[1732443842191,8.98,3395.4,3395.2,0.8435]
[1732443846173,8.1365,3395.1,3395.0,0.2935]
[1732443847388,8.1365,3395.1,3395.0,0.8435]
[1732443848307,8.21680577,3395.1,3395.0,0.8435]
[1732443849311,8.21680577,3395.1,3395.0,1.313247]
[1732443849514,8.21680577,3395.1,3395.0,1.76283159]
[1732443849874,8.21680577,3395.1,3395.0,0.74308459]
[1732443850186,8.21680577,3395.1,3393.7,0.1]
[1732443850187,7.843,3394.7,3394.5,0.2935]
[1732443850385,0.80024806,3394.6,3393.9,0.469747]
[1732443850602,7.843,3394.5,3393.9,0.469747]
[1732443851114,0.03644806,3394.4,3393.9,0.469747]
[1732443851297,0.11667763,3394.4,3394.0,0.2935]
[1732443851607,0.08022957,3394.4,3394.0,0.2935]
[1732443851786,0.08022957,3394.4,3394.1,0.2935]
[1732443853682,0.7638,3394.3,3394.1,0.2935]
[1732443854177,0.08022957,3394.2,3394.1,0.2935]
[1732443854573,0.7638,3394.3,3394.1,0.2935]
[1732443854810,0.08022957,3394.2,3394.1,0.2935]
[1732443855377,0.7638,3394.3,3394.1,0.2935]
[1732443855611,0.08022957,3394.2,3394.1,0.2935]
[1732443856297,0.7638,3394.3,3394.1,0.2935]
[1732443856677,0.07997731,3394.2,3394.1,0.2935]
[1732443856877,0.7638,3394.3,3394.1,0.2935]
[1732443857086,0.07997731,3394.2,3394.1,0.2935]
[1732443857289,7.079753,3394.0,3393.7,0.8435]
[1732443858013,0.07997731,3393.9,3393.7,0.8435]
[1732443858215,7.079753,3393.8,3393.7,0.8435]
[1732443858782,7.15973031,3393.8,3393.7,0.2935]
[1732443859123,7.15973031,3393.8,3393.6,0.2935]
[1732443859825,7.97723031,3393.8,3393.6,0.2935]
[1732443860189,7.97723031,3393.8,3393.5,0.2935]
[1732443860920,7.897253,3393.8,3393.5,0.2935]
[1732443861089,0.07977492,3393.7,3393.5,0.2935]
[1732443861420,7.897253,3393.8,3393.5,0.2935]
[1732443861906,0.07977492,3393.7,3393.5,0.2935]
[1732443862218,7.079753,3393.8,3393.5,0.2935]
[1732443862421,0.07977492,3393.6,3393.5,0.2935]
[1732443862621,7.079753,3393.8,3393.5,0.72410142]
[1732443862828,0.07977492,3393.6,3393.5,0.72410142]
[1732443863033,7.079753,3393.8,3393.5,0.72410142]
[1732443863324,7.079753,3393.7,3393.5,0.72410142]
[1732443863532,7.15952792,3393.7,3393.5,0.72410142]
[1732443866299,7.079753,3393.6,3393.5,0.72410142]
[1732443866696,7.15952792,3393.6,3393.5,0.2935]
[1732443872009,6.86602792,3393.6,3393.5,0.2935]
[1732443873898,6.86602792,3393.6,3393.5,1.0436]
[1732443875220,6.86602792,3393.6,3393.5,2.02420142]
[1732443875596,2.36860724,3393.6,3393.5,2.44932768]
[1732443876049,2.36860724,3393.6,3393.5,1.5936]
[1732443880635,9.0998969,3393.6,3393.5,0.8435]
[1732443882234,8.8063969,3393.6,3393.5,0.8435]
[1732443882442,8.88360201,3393.6,3393.4,0.55]
[1732443882642,8.88360201,3393.6,3393.5,0.55]
[1732443883238,8.88360201,3393.6,3393.3,0.8147]
[1732443883541,8.88360201,3393.6,3393.3,1.16565184]
[1732443883736,8.88360201,3393.6,3393.4,0.2935]
[1732443884249,8.8063969,3393.5,3393.4,0.2935]
[1732443884430,8.8063969,3393.5,3393.4,6.2403]
[1732443884744,8.88360201,3393.5,3393.4,6.7903]
[1732443885363,8.88360201,3393.5,3393.4,8.79917952]
[1732443885527,0.07720511,3393.5,3393.4,8.79917952]
[1732443885733,8.8063969,3394.5,3393.6,1.0957]
[1732443885954,8.8063969,3394.5,3393.8,3.8435]
[1732443886231,8.8063969,3394.5,3394.0,3.8435]
[1732443886443,8.8063969,3394.5,3394.2,0.2935]
[1732443886669,8.8063969,3394.5,3394.4,3.2935]
[1732443887433,8.8063969,3394.5,3394.4,6.2395]
[1732443889975,8.88373868,3394.5,3394.4,6.2395]
[1732443891483,8.88373868,3394.5,3394.4,7.41462]
[1732443895567,8.88373868,3394.5,3394.4,7.41402]
[1732443896281,1.46971868,3394.5,3394.1,0.8022]
[1732443896694,1.46971868,3394.5,3394.2,0.2935]
[1732443897352,1.46971868,3394.5,3394.1,0.2935]
[1732443901571,1.46971868,3394.5,3394.1,0.72410142]
[1732443902376,1.3923769,3394.4,3394.1,0.72410142]
[1732443902579,1.46986061,3394.4,3394.1,0.72410142]
[1732443903105,0.7797,3394.3,3394.2,0.2935]
[1732443903564,0.85718371,3394.3,3394.2,0.2935]
[1732443903769,0.85718371,3394.3,3394.2,0.72410142]
[1732443904703,0.85718371,3394.3,3394.2,0.43060142]
[1732443905066,0.85718371,3394.3,3394.0,0.42512626]
[1732443905268,1.3923769,3394.2,3393.8,0.55]
[1732443905687,0.07740751,3394.1,3393.8,0.55]
[1732443905903,1.3923769,3394.2,3393.8,0.55]
[1732443906987,1.3923769,3394.2,3393.9,0.02946268]
[1732443907174,1.3923769,3394.2,3394.0,0.55]
[1732443908400,1.3923769,3394.1,3394.0,0.55]
[1732443908604,1.46978441,3394.1,3394.0,0.55]
[1732443910704,1.46978441,3394.1,3394.0,1.614]
[1732443911368,1.3923769,3394.1,3394.0,1.614]
[1732443911569,1.46980018,3394.1,3394.0,1.614]
[1732443912071,1.46980018,3394.1,3394.0,0.8435]
[1732443912506,1.17630018,3394.1,3394.0,0.55]
[1732443912869,1.17630018,3394.1,3394.0,0.8435]
[1732443913291,1.0988769,3394.1,3394.0,0.8435]
[1732443918087,1.0988769,3394.1,3394.0,2.49662768]
[1732443918282,1.0988769,3394.1,3394.0,5.49662768]
[1732443918486,0.8263,3395.9,3394.4,0.2935]
[1732443918836,0.94011875,3395.8,3394.6,0.2935]
[1732443919425,0.86274806,3395.8,3394.6,0.2935]
[1732443919748,0.86274806,3395.8,3394.7,0.8435]
[1732443920520,0.86274806,3395.8,3394.7,0.2935]
[1732443920819,0.86274806,3395.8,3394.2,0.7974]
[1732443920820,0.8263,3395.6,3394.6,0.8435]
[1732443921022,0.07746529,3395.7,3394.6,0.2935]
[1732443921023,0.8263,3395.4,3394.6,0.2935]
[1732443921224,0.8263,3395.2,3394.6,0.2935]
[1732443921431,9.01644806,3395.1,3394.6,0.2935]
[1732443921590,9.05746529,3395.1,3394.6,0.2935]
[1732443921785,9.05746529,3395.1,3394.5,0.2935]
[1732443922001,9.05746529,3395.1,3394.6,0.2935]
[1732443922693,9.05676801,3395.1,3394.6,0.2935]
[1732443922898,0.03644806,3395.0,3394.6,0.8435]
[1732443923130,0.03644806,3395.0,3394.6,0.2935]
[1732443923293,0.07746529,3394.9,3394.6,0.2935]
[1732443924107,8.97930272,3395.1,3394.5,0.2935]
[1732443924531,0.07746529,3395.0,3394.5,0.2935]
[1732443926318,8.97930272,3394.9,3394.5,0.2935]
[1732443926729,0.07746529,3394.8,3394.5,0.2935]
[1732443927512,8.97930272,3394.9,3394.7,0.2935]
[1732443927841,8.97930272,3394.9,3394.8,0.8435]
[1732443932504,8.68580272,3394.9,3394.8,0.8435]
[1732443932712,8.68580272,3394.9,3394.8,2.06390142]
[1732443933710,8.68580272,3394.9,3394.8,1.6333]
[1732443935099,8.76079359,3394.9,3394.8,1.6333]
[1732443936506,8.76079359,3394.9,3394.8,2.08050975]
[1732443937709,8.76079359,3394.9,3394.8,2.52233601]
[1732443937920,8.76079359,3394.9,3394.8,5.52233601]
[1732443938141,8.76079337,3394.9,3394.8,5.52233601]
[1732443940420,8.76079337,3394.9,3394.8,2.22823601]
[1732443940933,8.76079337,3394.9,3394.8,1.97233601]
[1732443942609,8.46729337,3394.9,3394.8,2.52233601]
[1732443943003,8.46729337,3394.9,3394.8,5.52233601]
[1732443946752,5.28136144,3394.9,3394.8,5.52233601]
[1732443947053,5.28136144,3394.9,3394.8,8.46793601]
[1732443947852,5.28136144,3394.9,3394.8,7.5789]
[1732443950129,5.28136144,3394.9,3394.8,8.46793601]
[1732443950320,5.20637057,3395.8,3394.8,7.67813601]
[1732443950521,5.20637057,3395.8,3395.2,0.2935]
[1732443950743,0.07535076,3395.7,3395.6,0.2935]
[1732443950949,5.20637057,3395.7,3395.6,6.7885]
[1732443951124,5.28172133,3395.7,3395.6,6.7885]
[1732443952117,5.28172133,3395.7,3395.6,7.5468]
[1732443952849,5.20637057,3395.7,3395.6,7.5468]
[1732443953220,5.28172133,3395.7,3395.6,7.5468]
[1732443954333,5.28172133,3395.7,3395.6,6.7885]
[1732443955051,6.07792133,3395.7,3395.6,6.7885]
[1732443955412,6.07792133,3395.7,3395.6,6.495]
[1732443955637,6.07792133,3395.7,3395.6,6.2385]
[1732443959243,6.00257057,3395.7,3395.6,6.2385]
[1732443959641,6.07808677,3395.7,3395.6,6.2385]
[1732443962226,6.07808677,3395.7,3395.6,5.945]
[1732443962566,6.00257057,3395.7,3395.6,6.2382]
[1732443962721,6.07805528,3395.7,3395.6,6.2382]
[1732443966830,5.28185528,3395.7,3395.6,6.2382]
[1732443967562,5.25795528,3395.7,3395.6,6.2382]
[1732443967943,6.08745528,3395.7,3395.6,6.2382]
[1732443969964,5.25795528,3395.7,3395.6,7.12723601]
[1732443970267,5.25795528,3395.7,3395.6,6.2382]
[1732443970441,5.25795528,3395.7,3395.6,5.9441]
[1732443975431,6.08745528,3395.7,3395.6,5.9441]
[1732443976273,6.69620081,3395.7,3395.6,5.9441]
[1732443976773,6.08745528,3395.7,3395.6,5.9441]
[1732443985566,6.08745528,3395.7,3395.6,5.65]
[1732443985779,6.01197057,3395.7,3395.6,5.65]
[1732443986081,6.0874264,3395.7,3395.6,5.65]
[1732443989185,5.2579264,3395.7,3395.6,5.65]
[1732443989682,5.2579264,3395.7,3395.6,6.09720975]
[1732443990071,5.18247057,3395.7,3395.6,6.64720975]
[1732443990380,5.25788963,3395.7,3395.6,6.64720975]
[1732443991605,5.25788963,3395.7,3395.6,7.08903601]
[1732443991884,5.25788963,3395.7,3395.6,7.91553601]
[1732443992248,5.18247057,3395.7,3395.6,7.91553601]
[1732443992447,5.25788963,3395.7,3395.6,7.91553601]
[1732443993763,5.25788963,3395.7,3395.6,7.46832626]
[1732443993965,5.25788963,3395.7,3395.6,7.0265]
[1732443994877,5.25788963,3395.7,3395.6,7.47370975]
[1732443999890,5.25788963,3395.7,3395.6,7.0265]
[1732444006805,5.25788963,3395.7,3395.6,7.91553601]
[1732444010509,0.07541906,3395.7,3395.6,7.91553601]
[1732444010905,5.18247057,3396.2,3395.8,0.2932]
[1732444011219,5.18247057,3396.2,3396.0,3.2932]
[1732444011937,5.18247057,3396.2,3396.1,0.8432]
[1732444012147,5.18247057,3396.2,3396.1,0.2932]
[1732444012312,6.56186763,3396.2,3396.1,0.2932]
[1732444013107,6.63753875,3396.2,3396.1,0.2932]
[1732444013306,6.04204169,3396.2,3396.1,0.2932]
[1732444015815,5.25814169,3396.2,3396.1,1.29040975]
[1732444017143,5.25814169,3396.2,3396.1,0.8432]
[1732444018253,5.25814169,3396.2,3396.1,0.2932]
[1732444021328,6.01494169,3396.2,3396.1,0.2932]
[1732444028055,5.25814169,3396.2,3396.1,0.2932]
[1732444038470,6.07494169,3396.2,3396.1,0.2932]
[1732444039775,6.07494169,3396.2,3396.1,0.8432]
[1732444041298,5.25814169,3396.2,3396.1,0.8432]
[1732444044179,5.25814169,3396.2,3396.1,0.2932]
[1732444049264,6.08494169,3396.2,3396.1,0.2932]
[1732444052880,5.25814169,3396.2,3396.1,0.2932]
[1732444067124,6.07284169,3396.2,3396.1,0.2932]
[1732444069190,5.25814169,3396.2,3396.1,0.2932]
[1732444071231,5.25814169,3396.2,3396.1,0.8432]
[1732444074111,5.25814169,3396.2,3396.1,0.2932]
[1732444074307,6.07554169,3396.2,3396.1,0.2932]
[1732444078386,6.68309586,3396.2,3396.1,0.2932]
[1732444083768,6.07554169,3396.2,3396.1,0.2932]
[1732444084059,5.25814169,3396.2,3396.1,0.2932]
[1732444090647,0.8046,3396.1,3396.0,2.99969]
[1732444091151,0.88027376,3396.1,3396.0,2.99969]
[1732444091375,0.91672182,3396.1,3396.0,2.99969]
[1732444091536,6.06274433,3396.1,3396.0,2.99969]
[1732444094551,3.66932876,3396.1,3395.9,3.2397]
[1732444094757,0.84104806,3396.0,3395.9,3.2397]
[1732444094957,0.91675331,3396.0,3395.9,3.2397]
[1732444095170,1.28733414,3396.0,3395.9,3.2397]
[1732444095353,1.28733414,3396.0,3395.9,2.9465]
[1732444096366,1.21162889,3396.0,3395.9,2.9465]
[1732444096681,1.28733152,3396.0,3395.9,5.9465]
[1732444097246,1.25088346,3396.0,3395.9,5.9465]
[1732444097558,1.28733152,3396.0,3395.9,2.6533]
[1732444098081,1.38733152,3396.0,3395.9,2.3601]
[1732444098246,0.7623,3395.9,3394.6,0.2932]
[1732444098449,2.21922863,3395.8,3394.6,0.2932]
[1732444098757,0.7623,3395.7,3394.6,0.2932]
[1732444098958,0.7623,3395.5,3394.6,0.2932]
[1732444099176,0.7623,3395.3,3394.6,0.2932]
[1732444099382,0.7623,3395.1,3394.6,0.2932]
[1732444099551,2.21922863,3395.0,3394.6,0.2932]
[1732444099885,0.07547416,3394.9,3394.6,0.2932]
[1732444100370,0.7623,3394.8,3394.6,0.2932]
[1732444100781,0.07547416,3394.7,3394.6,0.2932]
[1732444100959,0.03644806,3394.7,3394.6,0.2932]
[1732444101158,0.07547416,3394.7,3394.6,0.2932]
[1732444101481,0.33850353,3394.7,3394.5,0.2932]
[1732444101649,0.7623,3394.6,3394.4,1.34361943]
[1732444101840,0.03644806,3394.5,3394.4,1.34361943]
[1732444102047,0.03644806,3394.5,3394.4,0.2932]
[1732444102254,0.11192222,3394.5,3394.4,0.2932]
[1732444102480,0.11192222,3394.5,3394.0,0.2932]
[1732444102779,0.03644806,3394.5,3394.0,0.2932]
[1732444103287,0.7623,3394.4,3394.0,0.2932]
[1732444103454,0.80794806,3394.3,3393.8,0.2932]
[1732444104157,0.84667198,3394.2,3393.8,0.2932]
[1732444104450,0.88312004,3394.2,3393.8,0.2932]
[1732444105584,0.03644806,3394.1,3393.5,0.2932]
[1732444105771,0.07517198,3394.0,3393.5,0.2932]
[1732444105979,0.03644806,3393.9,3393.5,0.2932]
[1732444106380,0.07517198,3393.8,3393.5,0.2932]
[1732444106550,8.98,3393.7,3393.5,0.2932]
[1732444106755,0.11088962,3393.6,3393.5,0.2932]
[1732444108766,0.11088962,3393.6,3393.4,0.29923619]
[1732444109174,0.07444156,3393.6,3393.5,0.44720975]
[1732444112208,8.98,3393.7,3393.5,0.44720975]
[1732444112807,0.07441001,3393.6,3393.5,0.44720975]
[1732444113168,8.98,3394.1,3393.5,0.44720975]
[1732444113505,0.07441001,3394.0,3393.5,0.44720975]
[1732444113665,0.07441001,3394.0,3393.5,1.21660975]
[1732444113864,0.11085807,3394.0,3393.5,1.21660975]
[1732444114101,0.07441001,3394.0,3393.5,1.21660975]
[1732444115096,0.07441001,3394.0,3393.5,1.50980975]
[1732444115302,0.07441001,3394.0,3393.5,1.21660975]
[1732444115693,8.98,3393.9,3393.5,1.21660975]
[1732444116002,0.07446785,3393.8,3393.5,1.21660975]
[1732444116216,0.07446785,3393.8,3393.6,0.2932]
[1732444118811,8.98,3393.7,3393.6,0.2932]
[1732444119201,9.05462557,3393.7,3393.6,0.2932]
[1732444120118,9.05462557,3393.7,3393.6,0.8432]
[1732444121238,5.66894307,3393.7,3393.6,2.56500985]
[1732444121529,0.07462557,3393.7,3393.6,5.85942491]
[1732444121693,0.07462557,3393.7,3393.6,5.88888412]
[1732444121894,5.5943175,3394.9,3394.2,1.1014]
[1732444122091,5.5943175,3394.8,3394.3,0.8432]
[1732444122296,5.66895622,3394.8,3394.3,0.8432]
[1732444127134,0.03644806,3394.7,3394.3,0.2932]
[1732444127436,1.35909562,3394.7,3394.4,0.2932]
[1732444127728,5.66895622,3394.6,3394.4,0.2932]
[1732444128298,5.66895622,3394.6,3393.9,0.2932]
[1732444128617,5.66895622,3394.6,3393.9,0.74040975]
[1732444130740,5.5943175,3394.5,3393.9,0.74040975]
[1732444131100,0.07476225,3394.4,3393.9,0.74040975]
[1732444132830,0.07476225,3394.4,3394.1,0.2932]
[1732444133038,0.07476225,3394.4,3394.3,0.8432]
[1732444133631,5.66907975,3394.4,3394.3,0.8432]
[1732444135252,5.66907975,3394.4,3394.3,0.76605704]
[1732444136613,0.07476225,3394.4,3394.3,0.76605704]
[1732444136816,5.5943175,3395.1,3394.3,0.76605704]
[1732444137046,0.07476225,3395.0,3394.3,0.76605704]
[1732444138540,0.11121031,3395.0,3394.3,0.76605704]
[1732444139846,5.5943175,3394.9,3394.3,0.76605704]
[1732444140515,0.07476225,3394.8,3394.3,0.76605704]
[1732444140927,0.8122,3394.7,3394.4,0.2932]
[1732444141133,5.63076556,3394.6,3393.8,0.2932]
[1732444141455,0.8122,3394.5,3393.8,0.2932]
[1732444141624,0.84864806,3394.4,3393.8,0.2932]
[1732444142008,0.07484632,3394.3,3393.5,0.2932]
[1732444142226,5.5943175,3394.2,3393.5,0.74040975]
[1732444142714,0.07489363,3394.1,3393.5,0.2932]
[1732444143119,0.07489363,3394.1,3393.6,0.2932]
[1732444144640,0.11134169,3394.1,3393.6,0.2932]
[1732444144817,0.7615,3394.0,3393.6,0.2932]
[1732444145157,0.07483055,3393.9,3393.6,0.2932]
[1732444145644,5.5943175,3393.8,3393.6,0.2932]
[1732444146230,0.07483055,3393.7,3393.6,0.2932]
[1732444146429,5.5943175,3393.8,3393.6,0.2932]
[1732444146627,0.07483055,3393.7,3393.6,0.2932]
[1732444146824,5.5943175,3393.8,3393.6,0.2932]
[1732444147036,0.07483055,3393.7,3393.6,0.2932]
[1732444147251,5.5943175,3393.8,3393.7,0.8432]
[1732444147655,5.5943175,3393.8,3393.7,0.2932]
[1732444148327,5.66916907,3393.8,3393.6,0.2932]
[1732444148660,5.5943175,3393.7,3393.6,0.8432]
[1732444148863,5.5943175,3393.7,3393.6,0.2932]
[1732444149335,5.66916907,3393.7,3393.4,0.2932]
[1732444150555,5.66916907,3393.7,3393.5,0.2932]
[1732444151648,5.5943175,3393.6,3393.5,0.2932]
[1732444152226,5.66886946,3393.6,3393.5,0.2932]
[1732444152637,5.66886946,3393.6,3393.5,1.6325]
[1732444152844,5.66886946,3393.6,3393.5,2.48797984]
[1732444153765,5.66886946,3393.6,3393.5,2.06943509]
[1732444154535,5.66886946,3393.6,3393.5,1.6325]
[1732444154740,5.66886946,3393.6,3393.5,0.8432]
[1732444154918,5.66886946,3393.6,3393.5,0.2932]
[1732444155946,5.66886946,3393.6,3393.3,0.2932]
[1732444156337,5.63076556,3393.6,3393.3,0.2932]
[1732444156733,0.07206776,3393.5,3393.3,0.2932]
[1732444156976,0.07206776,3393.5,3393.0,0.2932]
[1732444157740,5.5943175,3393.4,3393.2,0.2932]
[1732444158384,0.07206776,3393.3,3393.2,0.2932]
[1732444160668,5.66638526,3393.3,3393.2,0.2932]
[1732444168674,6.44808526,3393.3,3393.2,0.2932]
[1732444168855,5.66638526,3393.3,3393.2,0.2932]
[1732444171585,5.66638526,3393.3,3393.2,0.8432]
[1732444172486,5.66638526,3393.3,3393.2,2.10773509]
[1732444172690,0.07206776,3393.3,3393.2,2.52627984]
[1732444172981,0.07206776,3393.3,3393.2,5.55574517]
[1732444173195,5.5943175,3393.8,3393.4,0.2932]
[1732444173370,5.5943175,3393.8,3393.6,0.2932]
[1732444173696,0.0719386,3393.7,3393.6,0.8432]
[1732444174109,5.5943175,3393.8,3393.6,0.8432]
[1732444174253,5.5943175,3393.8,3393.7,1.6708]
[1732444175782,5.5943175,3394.3,3393.7,1.6708]